Cogmind - Beta 11 @@@ ROGUE MODE // 2022.04.07 @ 12:07:20 Player: Wisp Result: Destroyed by D-53 Grenadier with Mini Grenade Launcher Performance ------------- Evolutions (0) 0 Regions Visited (4) 800 Robots Destroyed (14) 70 Value Destroyed (316) 316 Prototype IDs (1) 20 Alien Tech Used (0) 0 Bonus (300) 300 TOTAL SCORE: 1506 Bonus ------- Aligned with FarCom 300 Cogmind --------- Core Integrity 0/250 Matter 300/300 Energy 84/100 System Corruption 0% Temperature Cool (0) Movement Core (350) Ox6 Location -9/Mines Parts ------- > --- POWER (1) -------- (None) > --- PROPULSION (2) --- (None) > --- UTILITY (2) ------ Large Storage Unit Trap Reconfigurator > --- WEAPON (2) ------- (None) > --- INVENTORY (15) --- Light Ion Engine Light Treads Aluminum Leg Small Storage Unit Humpback High-capacity Battery (250) Medium Matter Pod (100) Medium Matter Pod (100) Medium Matter Pod (100) Experimental Sensor Array Small Laser Light Assault Rifle Peak State ------------ > --- POWER ------------ Ion Engine > --- PROPULSION ------- Aluminum Leg Flexi-carbon Leg > --- UTILITY ---------- Large Storage Unit Trap Reconfigurator > --- WEAPON ----------- Particle Gun Light Assault Rifle > --- INVENTORY -------- Light Ion Engine Light Treads Aluminum Leg Small Storage Unit Humpback High-capacity Battery Medium Matter Pod Medium Matter Pod Medium Matter Pod Experimental Sensor Array Small Laser Light Assault Rifle [Rating: 22] Favorites ----------- Power Light Nuclear Core Engine Light Ion Engine Power Core Light Nuclear Core Propulsion Aluminum Leg Treads Light Treads Leg Aluminum Leg Utility Medium Matter Pod Device Trap Reconfigurator Storage Medium Matter Pod Weapon Light Assault Rifle Energy Gun Particle Gun Ballistic Gun Light Assault Rifle Build | -11 -10 -10 -10 -9 ------- Run | Scr Mat Min Exi Min Slots Evolved . | . . . . . Power . | . . . . . Propulsion . | . . . . . Utility . | . . . . . Weapon . | . . . . . Parts Attached 26 | 7 . 9 8 2 Power 4 | 1 . 2 . 1 Engine 2 | 1 . . . 1 Core 2 | . . 2 . . Reactor . | . . . . . Propulsion 9 | 2 . 2 4 1 Treads 4 | 2 . . 2 . Leg 5 | . . 2 2 1 Wheel . | . . . . . Hover . | . . . . . Flight . | . . . . . Utility 7 | 2 . 1 4 . Device 2 | 1 . . 1 . Storage 5 | 1 . 1 3 . Processor . | . . . . . Hackware . | . . . . . Protection . | . . . . . Artifact . | . . . . . Weapon 6 | 2 . 4 . . Energy Gun 3 | 1 . 2 . . Energy Cannon . | . . . . . Ballistic Gun 3 | 1 . 2 . . Ballistic Cannon . | . . . . . Launcher . | . . . . . Special Weapon . | . . . . . Impact Weapon . | . . . . . Slashing Weapon . | . . . . . Piercing Weapon . | . . . . . Special Melee Weapon . | . . . . . Unidentified Prototypes 1 | . . . 1 . Parts Lost 11 | . . 5 . 6 Power 2 | . . . . 2 Propulsion 3 | . . 1 . 2 Utility 1 | . . 1 . . Weapon 5 | . . 3 . 2 Highest Loss Streak 6 | . . 2 . 6 To Critical Strikes . | . . . . . Average Slot Usage (%) 98 | . 100 97 98 100 Core 13 | . . 13 14 10 Treads 7 | . 28 16 . . Leg 19 | . . 9 28 28 Device 3 | . 14 1 4 14 Storage 23 | . 14 26 21 14 Energy Gun 13 | . 14 11 14 14 Ballistic Gun 14 | . 14 15 14 14 Naked Turns . | . . . . . Heaviest Build 209 | 12 12 16 209 30 Greatest Support 40 | 40 40 40 20 30 Greatest Overweight (x) 10 | 2 . 1 10 1 Average Overweight (x) . | . . . 1 . Largest Inventory Capacity 35 | 8 8 8 35 15 Average Capacity 12 | 7 8 8 16 15 Most Carried 13 | 2 5 8 13 13 Average Carried 8 | 1 2 7 10 12 Final Capacity 15 | 8 8 8 15 15 Final Carried 13 | 2 5 8 13 13 Class Distribution -------------------- 62% | Scavenger-Mutant 33% | Mutant 4% | Hauler-Mutant Dominant Class ---------------- Mutant | -10/Materials Mutant | -10/Mines Scavenger-Mutant | -10/Exiles Scavenger-Mutant | -9/Mines Resources | -11 -10 -10 -10 -9 ----------- Run | Scr Mat Min Exi Min Matter Collected 770 | 270 . 418 80 2 Remotely . | . . . . . Salvage Created 516 | 102 . 414 . . Parts 31 | 5 . 26 . . Haulers Intercepted . | . . . . . Recyclers Shooed . | . . . . . Parts Field Recycled . | . . . . . Retrieved Matter . | . . . . . Parts Self-Destructed . | . . . . . Prevented . | . . . . . Kills | -11 -10 -10 -10 -9 ------- Run | Scr Mat Min Exi Min Combat Hostiles Destroyed 12 | . . 12 . . Guns 12 | . . 12 . . Classes Destroyed 4 | 2 . 2 . . Tunneler 1 | 1 . . . . Recycler 1 | 1 . . . . Swarmer 6 | . . 6 . . Grunt 6 | . . 6 . . Best Kill Streak 3 | 1 . 3 . . Combat Bots Only 3 | . . 3 . . Max Kills in Single Turn 2 | 1 . 2 . . Gunslinging 1 | . . 1 . . Exploded . | . . . . . Melee . | . . . . . Uniques/NPCs Destroyed . | . . . . . Combat | -11 -10 -10 -10 -9 -------- Run | Scr Mat Min Exi Min Damage Taken 1269 | . . 667 . 602 Core 263 | . . 107 . 156 Absorbed by Shields . | . . . . . Core Remaining (%) 100 | 100 . . . . Volleys Fired 46 | 7 . 39 . . Largest 2 | 2 . 2 . . Hottest 85 | 60 . 85 . . Shots Fired 89 | 14 . 75 . . Gun 89 | 14 . 75 . . Cannon . | . . . . . Launcher . | . . . . . Special . | . . . . . Kinetic 53 | 7 . 46 . . Thermal 10 | . . 10 . . Explosive . | . . . . . Electromagnetic 26 | 7 . 19 . . Robot Hit Streak 8 | 2 . 8 . . Robot Miss Streak 2 | 2 . 2 . . Penetration Max . | . . . . . Secondary Targets 4 | . . 4 . . Max Gunslinging Chain 1 | . . 1 . . Shots Hit Robots 56 | 7 . 49 . . Core Hits 24 | 3 . 21 . . Critical Kills . | . . . . . Critical Parts Destroyed . | . . . . . Critical Strikes 1 | . . 1 . . Burn 1 | . . 1 . . Melee Attacks . | . . . . . Impact . | . . . . . Slashing . | . . . . . Piercing . | . . . . . Sneak Attacks . | . . . . . Combat Hostiles . | . . . . . Follow-up Attacks . | . . . . . Damage Inflicted 656 | 79 . 577 . . Guns 582 | 79 . 503 . . Cannons . | . . . . . Explosions 74 | . . 74 . . Melee . | . . . . . Ramming . | . . . . . Kinetic 292 | 25 . 267 . . Thermal 157 | . . 157 . . Explosive . | . . . . . Electromagnetic 207 | 54 . 153 . . Impact . | . . . . . Slashing . | . . . . . Piercing . | . . . . . Highest Corruption . | . . . . . Average Corruption . | . . . . . Corruption Purged . | . . . . . Corruption Blocked . | . . . . . Overload Shots . | . . . . . Overflow Damage . | . . . . . Projectiles . | . . . . . Explosions . | . . . . . Melee . | . . . . . Knockbacks . | . . . . . Impact . | . . . . . Kinetic . | . . . . . Secondary . | . . . . . Self-Inflicted Damage . | . . . . . Shots . | . . . . . Rammed . | . . . . . Targets Rammed . | . . . . . Kicked . | . . . . . Crushed . | . . . . . Highest Temperature 220 | 20 . 220 . . Average Temperature 69 | 15 . 74 . . Received Heat Transfer 345 | . . 345 . . Effects 1 | . . 1 . . Interference 1 | . . 1 . . Siege Activations . | . . . . . Robots Corrupted . | . . . . . Combat Hostiles . | . . . . . Parts Fried . | . . . . . Impact Corruptions . | . . . . . Robots Melted . | . . . . . Combat Hostiles . | . . . . . Parts Melted . | . . . . . Heat Transferred 359 | . . 359 . . Parts Sabotaged . | . . . . . Parts Stolen . | . . . . . Parts Stripped . | . . . . . Power Chain Reactions 1 | . . 1 . . Missiles Intercepted . | . . . . . Alert | -11 -10 -10 -10 -9 ------- Run | Scr Mat Min Exi Min Peak Influence 192 | 10 21 192 . . Initial 7 | . 6 7 . . Average 71 | 3 15 89 . . Maximum Alert Level 1 | . . 1 . . Low Security (%) 99 | 100 100 99 . 100 Level 1 . | . . . . . Level 2 . | . . . . . Level 3 . | . . . . . Level 4 . | . . . . . Level 5 . | . . . . . High Security . | . . . . . Max Security . | . . . . . Squads Dispatched 1 | . 1 . . . Investigation . | . . . . . Extermination . | . . . . . Reinforcement 1 | . 1 . . . Assault . | . . . . . Garrison . | . . . . . Intercept . | . . . . . Searches Triggered . | . . . . . Construction Impeded . | . . . . . Haulers Reinforced . | . . . . . Active Scanning Responses . | . . . . . Cargo Convoy Interrupts . | . . . . . Stealth | -11 -10 -10 -10 -9 --------- Run | Scr Mat Min Exi Min Distress Signals . | . . . . . Communications Jammed . | . . . . . Distress Signals . | . . . . . Times Spotted 37 | . 1 13 . 23 Peak Tracking Total 19 | . . 3 . 19 Tactical Retreats 2 | . . 1 . 1 Traps | -11 -10 -10 -10 -9 ------- Run | Scr Mat Min Exi Min Traps Triggered . | . . . . . Indirectly . | . . . . . Trap Hack Attempts . | . . . . . Triggered . | . . . . . Disarmed . | . . . . . Reprogrammed . | . . . . . Reused . | . . . . . Traps Extracted . | . . . . . Installed . | . . . . . Triggered . | . . . . . Exploded 1 | . . . 1 . Machines | -11 -10 -10 -10 -9 ---------- Run | Scr Mat Min Exi Min Machines Disabled . | . . . . . Max in Single Turn . | . . . . . Machines Sabotaged . | . . . . . Garrisons Compromised . | . . . . . Overloaded Fab Kills . | . . . . . Hacking | -11 -10 -10 -10 -9 --------- Run | Scr Mat Min Exi Min Machines Accessed . | . . . . . Terminals . | . . . . . Fabricators . | . . . . . Repair Stations . | . . . . . Recycling Units . | . . . . . Scanalyzers . | . . . . . Garrison Access . | . . . . . Total Hacks . | . . . . . Successful . | . . . . . Failed . | . . . . . Catastrophic . | . . . . . Database Lockouts . | . . . . . Manual 1 | . . . 1 . Terminals . | . . . . . Fabricators . | . . . . . Repair Stations . | . . . . . Recycling Units . | . . . . . Scanalyzers . | . . . . . Garrison Access . | . . . . . Terminal Hacks . | . . . . . Fabricator Hacks . | . . . . . Repair Station Hacks . | . . . . . Recycling Unit Hacks . | . . . . . Scanalyzer . | . . . . . Garrison Access Hacks . | . . . . . Unauthorized Hacks . | . . . . . Terminals . | . . . . . Fabricators . | . . . . . Repair Stations . | . . . . . Recycling Units . | . . . . . Scanalyzers . | . . . . . Garrison Access . | . . . . . Data Cores Recovered . | . . . . . Used . | . . . . . Hacking Detections . | . . . . . Full Trace Events . | . . . . . Feedback Events . | . . . . . Feedback Blocked . | . . . . . Robot Schematics Acquired . | . . . . . Robots Built . | . . . . . Authchips . | . . . . . Time . | . . . . . Total Robot Build Rating . | . . . . . Part Schematics Acquired . | . . . . . Parts Built . | . . . . . Authchips . | . . . . . Time . | . . . . . Total Part Build Rating . | . . . . . Parts Repaired . | . . . . . Time . | . . . . . Parts Recycled . | . . . . . Recycled Matter . | . . . . . Retrieved Matter . | . . . . . Retrieved Components . | . . . . . Parts Scanalyzed . | . . . . . Part Schematics Acquired . | . . . . . Parts Damaged . | . . . . . Bothacking | -11 -10 -10 -10 -9 ------------ Run | Scr Mat Min Exi Min Used RIF Installer . | . . . . . Robots Hacked . | . . . . . Non-combat . | . . . . . Combat . | . . . . . Robot Hacks Applied . | . . . . . Relay Couplers Released . | . . . . . Fabnet Peak Effective % . | . . . . . Robots Rewired . | . . . . . Allies Hacked . | . . . . . Hacks Repelled . | . . . . . Allies | -11 -10 -10 -10 -9 -------- Run | Scr Mat Min Exi Min Total Allies . | . . . . . Largest Group . | . . . . . Highest-Rated Group . | . . . . . Highest-Rated Ally . | . . . . . Total Orders . | . . . . . Ally Attacks . | . . . . . Total Damage . | . . . . . Kills . | . . . . . Allies Corrupted . | . . . . . Allies Melted . | . . . . . Intel | -11 -10 -10 -10 -9 ------- Run | Scr Mat Min Exi Min Robot Analysis Total . | . . . . . Derelict Logs Recovered 2 | . . 2 . . Drone Launches . | . . . . . Drone Recoveries . | . . . . . Exploration | -11 -10 -10 -10 -9 ------------- Run | Scr Mat Min Exi Min Turns Passed 2026 | 112 60 789 1019 46 Spaces Moved 1034 | 52 36 434 489 23 Core 5 | 5 . . . . Treads 346 | 47 36 263 . . Legs 683 | . . 171 489 23 Wheels . | . . . . . Hover . | . . . . . Flight . | . . . . . Fastest Speed 50 | 50 160 120 120 120 Average Speed 167 | 155 160 144 190 174 Slowest Speed 820 | 160 160 190 820 190 Overloaded Moves . | . . . . . Propulsion Burnouts . | . . . . . Robots Hopped . | . . . . . Cave-ins Triggered . | . . . . . Exploration Rate (%) 33 | 4 11 48 91 13 Regions Visited 4 Branch Regions 3 Pre-discovered Areas . | . . . . . Known Exits Taken . | . . . . . Unknown Exits Taken 4 | 1 1 1 1 . Scrap Searched 1 | . . 1 . . Spaces Dug . | . . . . . Terrain Destroyed 5 | . . 5 . . Melee . | . . . . . Projectile . | . . . . . AOE 5 | . . 5 . . Terrain Rammed . | . . . . . Walls Destroyed . | . . . . . Machines Disabled . | . . . . . Actions | -11 -10 -10 -10 -9 --------- Run | Scr Mat Min Exi Min Total 1244 | 67 39 531 578 29 Wait 99 | . 1 38 56 4 Move 1030 | 51 35 433 488 23 Hop . | . . . . . Pick Up 31 | 2 3 9 17 . Fast Attach 10 | 7 . 1 2 . Attach 6 | . . 4 1 1 Detach . | . . . . . Swap 10 | . . 4 5 1 Drop 12 | . . 3 9 . Fire 46 | 7 . 39 . . Melee . | . . . . . Ram . | . . . . . Kick . | . . . . . Crush . | . . . . . Escape Stasis . | . . . . . Rewire . | . . . . . Trap . | . . . . . Miscellaneous . | . . . . . Route ------- -11/Scrapyard -10/Materials -10/Mines -10/Exiles -9/Mines History --------- Turn | Location | Event 39 | -11/Scrapyard | Discovered new exit (range 14) 113 | -11/Scrapyard | Entered Materials 133 | -10/Materials | Discovered new exit (range 16) 173 | -10/Materials | Entered Mines 217 | -10/Mines | Learned Materials emergency access door positions 231 | -10/Mines | Found a damaged Exp. Sensor Array with a note attached 235 | -10/Mines | Found Prototype Device 276 | -10/Mines | Learned Materials emergency access door positions 309 | -10/Mines | Build established: Mutant 955 | -10/Mines | Deemed a non-threat by the Exiles lab entrance 956 | -10/Mines | Discovered new exit (range 5) 962 | -10/Mines | Entered Exiles 982 | -10/Exiles | Build established: Scavenger-Mutant 995 | -10/Exiles | Met 8R-AWN 1012 | -10/Exiles | Met EX-HEX 1236 | -10/Exiles | Met EX-DEC 1290 | -10/Exiles | Visited The Gauntlet 1593 | -10/Exiles | Met EX-BIN 1614 | -10/Exiles | Aligned with FarCom system 1616 | -10/Exiles | Given EX-Vault access code 1660 | -10/Exiles | Opened EX-Vault 1669 | -10/Exiles | Found Prototype Device 1670 | -10/Exiles | Identified Trap Reconfigurator 1714 | -10/Exiles | Warned to stay clear of 0b10 Research branches 1739 | -10/Exiles | Exiles lab attacked by MAIN.C 1911 | -10/Exiles | Discovered new exit (range 10) 1981 | -10/Exiles | Left Exiles lab with Trap Reconfigurator 1981 | -10/Exiles | Entered Mines 1982 | -9/Mines | Assembled infested the area 1987 | -9/Mines | Assisted by a Guerilla fighting off Assembled 2012 | -9/Mines | Core integrity fell below 50% 2020 | -9/Mines | Core integrity fell below 20% 2027 | -9/Mines | Destroyed by D-53 Grenadier with Mini Grenade Launcher Last Messages --------------- 02020_ Lgt. Assault Rifle destroyed. 02020_ as-80260 destroyed. 02020_ as-43513 destroyed. 02020_ as-07725 destroyed. 02020_ as-43513 destroyed. 02020_ S-10 Pest destroyed. 02021_ as-52692 destroyed. 02021_ as-43644 destroyed. 02021_ as-78223 destroyed. 02021_ S-10 Pest destroyed. 02022_ Particle Gun destroyed. 02022_ as-54829 destroyed. 02024_ Pressure Siphon disabled. 02025_ Ion Engine destroyed. 02025_ Aluminum Leg destroyed. 02025_ as-22339 destroyed. 02026_ The unstable cave ceiling collapses. 02026_ S-10 Pest destroyed. 02027_ D-53 Grenadier destroyed. 02027_ Flexi-carbon Leg destroyed. Map ----- +----------------------------------------------------+ | ??????????????????????????????????? | | ??????????????????????????????????? | | ??????????????????????????????????? | | ??????????????????????????????????? | | ??????????????????????????????????? | | ??????????????????????????????????? | | ??????????????????????????????????? | | ??????????????????????????????????? | | ??????????????????????????????????? | | ??????????????????????????????????? | | ??????????????????????????????????? | | ??????????????????????????????????? | | ??????????????????????????????????? | | ??????????????????????????????????? | | ??????????????????????????????????? | | ??????????????????????????????????? | | ??????????????????????????????????? | | ????????????????????????????????? | | ????###???????######## ????????? | | ???## ####### a ????????? | | ???# # $ ?????????? #? | | ???# #a###???????? #?? | | ????# a ##?????? #??? | | ????# ###???# #??? | | ????# """ # # #### #??? | | ???# "" @ #???? | | ??# """ a= = #????? | | ??# !%d%%= #????? | | ??# ! =%[ #????? | | ??## ### # = ##????? | | ???##???## #### ##?????? | | ?????????# #??#### ## ##??????? | | ????????? ??????#######???????? | | ????????# ????????????????????? | | ????????# ???????????????????? | | ????????# ???????????????????? | | ????????## ???????????????????? | | ?????????## ??????????????????? | | ??????????##### ??????????????????? | | ??????????????????????????????????? | | ??????????????????????????????????? | | ??????????????????????????????????? | | ??????????????????????????????????? | | ??????????????????????????????????? | | ??????????????????????????????????? | | ??????????????????????????????????? | | ??????????????????????????????????? | | ??????????????????????????????????? | | ??????????????????????????????????? | | ??????????????????????????????????? | +----------------------------------------------------+ Best States ------------- Heat Dissipation 25 Energy Generation 14 Energy Capacity 250 Matter Stores 400 Matter Capacity 400 Sight Range 16 Terrain Scan Range 16 Terrain Scan Density 10 Evasion (%) 55 Recoil Reduction 2 Item Schematics ----------------- None Robot Schematics ------------------ None Fabricated ------------ Nothing Alien Tech Used ----------------- None Achievements -------------- None Challenges ------------ None Game ------ Seed SpliceNovaLauncher Manual? 0 Play Time 00:17:57 Cumulative 36.2 hours Start 2022.04.07 @ 11:49:34 End 2022.04.07 @ 12:07:20 Sessions 1 Manual Loads 0 Difficulty Rogue Special Mode None Game No. 27 Rogue 27 Adventurer 0 Explorer 0 Win Type - Total 0 Types 0/0/0/0/0/0/0/0/0 Lore% 24 Gallery% 33 Achievement% 25 Wizard Run 0 Options --------- ASCII 0 Keyboard 0 Movement Numpad Keybinds 0 Fullscreen 1 Font 18/SmallcapsGlow Map View 76x50 Tactical HUD 1 Map Filters NONE Filters NONE Steam 1 RUN: fda01cc3-53de-4fdc-bddd-b37bbf45c4f9